bitfinex/quotes_SOLUSD_20250821
["timestamp","ask_amount","ask_price","bid_price","bid_amount"]
[1755762708890,0.2,187.38,187.37,38.03]
[1755762709592,0.2,187.38,187.37,40.42662689]
[1755762713284,0.2,187.38,187.37,38.03]
[1755762713493,0.2,187.38,187.37,40.42662689]
[1755762713985,0.2,187.38,187.37,37.34]
[1755762714206,0.9,187.38,187.37,37.34]
[1755762714378,0.9,187.38,187.37,63.34]
[1755762715079,0.9,187.38,187.37,37.34]
[1755762715485,0.9,187.38,187.37,63.34]
[1755762719997,0.9,187.38,187.37,63.37]
[1755762721513,3.29662689,187.38,187.37,0.03]
[1755762721724,3.29662689,187.38,187.36,0.03]
[1755762721725,12.88313445,187.38,187.36,0.03]
[1755762721890,3.09662689,187.37,187.36,0.03]
[1755762723185,0.2,187.38,187.36,0.03]
[1755762723915,0.2,187.38,187.37,26.0]
[1755762724117,0.2,187.38,187.37,26.69]
[1755762724315,0.2,187.38,187.37,29.08662689]
[1755762724623,0.2,187.38,187.37,32.24325389]
[1755762725722,0.2,187.38,187.37,56.24338196]
[1755762726023,0.2,187.38,187.37,61.58041563]
[1755762726318,0.06,187.4,187.38,31.36071409]
[1755762726621,0.06,187.4,187.39,41.34472161]
[1755762726919,0.06,187.4,187.39,42.03472161]
[1755762727493,0.06,187.4,187.39,47.37118566]
[1755762728221,0.06,187.41,187.39,47.37118566]
[1755762728222,0.06,187.41,187.4,0.28432314]
[1755762728422,0.06,187.42,187.4,28.31031562]
[1755762728622,0.06,187.42,187.41,55.63031562]
[1755762729416,0.06,187.42,187.41,60.96621018]
[1755762729724,0.06,187.42,187.41,55.63031562]
[1755762730213,0.06,187.42,187.41,13.87991715]
[1755762730414,0.06,187.42,187.4,3.74039847]
[1755762730626,0.06,187.42,187.41,37.32]
[1755762731022,0.06,187.42,187.41,41.060398]
[1755762731200,0.76,187.42,187.41,41.060398]
[1755762731707,4.50039847,187.42,187.41,3.740398]
[1755762731900,4.50039847,187.42,187.38,26.0]
[1755762732119,4.44039847,187.41,187.39,37.32]
[1755762732335,0.7,187.4,187.39,37.32]
[1755762733324,4.44039847,187.4,187.39,37.32]
[1755762733915,0.7,187.4,187.39,37.32]
[1755762734422,4.44039847,187.4,187.38,3.800399]
[1755762734607,3.74039847,187.39,187.36,26.03]
[1755762734808,3.74039847,187.37,187.36,37.35]
[1755762735031,4.44039847,187.37,187.36,37.35]
[1755762735719,4.44039847,187.37,187.36,0.03]
[1755762736300,0.7,187.37,187.36,0.03]
[1755762736500,4.44039847,187.37,187.36,0.03]
[1755762738228,18.03599248,187.37,187.36,0.03]
[1755762741326,0.7,187.37,187.36,0.03]
[1755762741530,4.44039847,187.37,187.36,0.03]
[1755762742732,0.76,187.4,187.36,0.03]
[1755762742930,3.74039847,187.39,187.36,0.03]
[1755762743506,3.74039847,187.39,187.36,0.73]
[1755762743706,3.80039847,187.4,187.36,0.03]
[1755762743935,3.80039847,187.4,187.38,26.0]
[1755762744517,0.06,187.4,187.39,26.0]
[1755762745133,4.52039847,187.4,187.38,26.0]
[1755762745336,0.06,187.4,187.38,26.0]
[1755762745539,3.80039847,187.4,187.38,26.0]
[1755762746237,0.06,187.4,187.39,26.0]
[1755762747043,0.06,187.4,187.38,0.7]
[1755762747425,3.80039847,187.4,187.39,26.0]
[1755762747627,0.06,187.4,187.39,26.7]
[1755762747825,0.06,187.4,187.39,0.7]
[1755762748228,0.06,187.4,187.39,4.44039847]
[1755762748426,0.06,187.4,187.39,8.24079647]
[1755762750450,0.06,187.4,187.39,3.800398]
[1755762751326,0.06,187.4,187.39,4.500398]
[1755762751531,0.06,187.4,187.39,8.24079647]
[1755762754047,0.06,187.4,187.39,4.500398]
[1755762754239,0.06,187.4,187.39,8.24079647]
[1755762755759,0.06,187.4,187.39,8.52511961]
[1755762756259,0.06,187.4,187.39,88.32511961]
[1755762757356,0.06,187.4,187.39,125.70511961]
[1755762757554,0.06,187.4,187.39,83.600398]
[1755762757858,4.52039847,187.4,187.36,117.19]
[1755762758054,0.72,187.39,187.36,117.19]
[1755762758254,0.72,187.39,187.38,26.0]
[1755762758457,0.72,187.39,187.37,2.139094]
[1755762758652,0.72,187.39,187.36,37.39]
[1755762758837,4.52039847,187.4,187.36,67.83039847]
[1755762759035,3.80039847,187.4,187.36,67.190399]
[1755762759261,0.72,187.39,187.38,26.0]
[1755762759661,0.06,187.4,187.38,26.0]
[1755762759958,0.06,187.4,187.39,26.7]
[1755762760338,0.06,187.4,187.39,30.44039847]
[1755762760739,0.06,187.4,187.39,32.57926447]
[1755762761367,0.06,187.4,187.39,28.138866]
[1755762764067,0.06,187.4,187.39,107.938866]
[1755762768944,0.06,187.4,187.39,111.67926447]
[1755762769264,0.06,187.4,187.39,112.37926447]
[1755762770977,0.06,187.4,187.39,112.40926447]
[1755762772380,0.06,187.4,187.39,107.968866]
[1755762772556,4.52039847,187.4,187.39,0.03]
[1755762778984,0.06,187.4,187.39,0.03]
[1755762779170,4.51039847,187.4,187.39,0.03]
[1755762780969,21.84639095,187.4,187.39,0.03]
[1755762781899,18.10599248,187.4,187.39,0.03]
[1755762787198,3.80039847,187.4,187.39,0.03]
[1755762787400,0.06,187.4,187.39,0.74]
[1755762792590,0.06,187.4,187.39,26.74]
[1755762792990,0.06,187.4,187.39,30.48039847]
[1755762794423,0.06,187.4,187.39,4.48039847]
[1755762794805,0.06,187.4,187.39,6.61926347]
[1755762795214,0.06,187.4,187.39,2.878865]
[1755762799526,0.06,187.4,187.39,82.678865]
[1755762801023,0.06,187.4,187.39,81.968865]
[1755762801419,0.06,187.4,187.39,82.678865]
[1755762803512,0.06,187.4,187.39,81.968865]
[1755762805419,0.06,187.4,187.39,2.168865]
[1755762806707,0.06,187.4,187.39,2.878865]
[1755762807704,4.45039847,187.4,187.39,0.03]
[1755762815044,4.45039847,187.4,187.39,0.03]
[1755762820153,3.80039847,187.4,187.39,0.03]
[1755762821649,4.45039847,187.4,187.39,0.03]
[1755762823254,4.45039847,187.4,187.37,0.03]
[1755762823255,13.59559401,187.39,187.37,0.03]
[1755762823550,21.07639095,187.38,187.37,0.03]
[1755762823760,21.72639095,187.38,187.37,0.03]
[1755762824748,59.35071409,187.38,187.36,0.03]
[1755762824950,4.67472161,187.37,187.36,0.03]
[1755762826863,4.67472161,187.37,187.35,0.03]
[1755762827046,17.62031562,187.36,187.35,0.03]
[1755762827255,18.27031562,187.36,187.35,0.03]
[1755762827834,0.28432314,187.35,187.34,0.03]
[1755762828031,13.87991715,187.33,187.3,0.03]
[1755762828255,55.32599248,187.32,187.3,0.03]
[1755762828442,54.67599248,187.32,187.3,0.03]
[1755762830476,3.74039847,187.32,187.3,0.03]
[1755762830660,3.74039847,187.32,187.31,0.74]
[1755762830847,3.74039847,187.32,187.31,0.03]
[1755762831572,4.39039847,187.32,187.31,0.03]
[1755762832378,4.39039847,187.32,187.31,0.74]
[1755762832379,3.74039847,187.32,187.31,0.74]
[1755762832766,3.74039847,187.32,187.31,0.03]
[1755762838086,4.40039847,187.32,187.31,0.03]
[1755762838274,41.74039847,187.32,187.31,0.03]
[1755762840263,55.33599248,187.32,187.31,0.03]
[1755762841697,58.1221786,187.32,187.31,0.03]
[1755762845587,57.4621786,187.32,187.31,0.03]
[1755762845988,6.52658459,187.32,187.31,0.72]
[1755762846201,43.88658459,187.32,187.31,0.72]
[1755762846403,40.14618612,187.32,187.31,0.72]
[1755762846561,43.88658459,187.32,187.31,0.72]
[1755762846763,41.10039847,187.32,187.31,0.72]
[1755762847192,3.74039847,187.32,187.31,0.72]
[1755762848700,3.74039847,187.33,187.31,0.72]
[1755762848878,3.74039847,187.34,187.31,0.72]
[1755762849084,3.74039847,187.33,187.31,0.72]
[1755762849383,37.36,187.35,187.31,0.72]
[1755762849579,3.74039847,187.34,187.31,0.72]
[1755762851895,37.36,187.35,187.31,0.72]
[1755762852101,37.36,187.35,187.31,26.72]
[1755762852279,37.36,187.35,187.32,0.69]
[1755762853104,37.36,187.35,187.33,0.69]
[1755762853810,3.74039847,187.36,187.34,0.69]
[1755762854178,0.06,187.35,187.34,0.69]
[1755762868694,0.06,187.35,187.34,4.43039847]
[1755762871727,0.06,187.35,187.34,0.69]
[1755762874821,0.06,187.35,187.34,4.43039847]
[1755762877903,0.06,187.35,187.34,4.44039847]
[1755762878226,0.06,187.35,187.33,29.74039847]
[1755762878430,0.06,187.35,187.33,30.44039847]
[1755762878810,0.06,187.35,187.34,0.7]
[1755762880318,0.06,187.35,187.33,29.09726792]
[1755762880631,0.06,187.35,187.33,28.39726792]
[1755762880838,0.06,187.35,187.34,0.7]
[1755762882336,0.06,187.35,187.33,29.09726792]
[1755762882941,0.06,187.35,187.33,26.7]
[1755762883112,0.06,187.35,187.33,29.09726792]
[1755762883827,0.06,187.35,187.33,26.0]
[1755762884026,0.06,187.35,187.32,0.03]
[1755762884027,3.09726792,187.34,187.32,0.03]
[1755762884231,2.39726792,187.34,187.32,0.03]
[1755762884425,0.7,187.33,187.32,0.03]
[1755762887611,3.80720667,187.35,187.32,0.03]
[1755762887612,4.50720667,187.35,187.32,0.03]
[1755762887833,0.76,187.35,187.32,0.03]
[1755762888023,0.7,187.34,187.32,0.03]
[1755762888218,0.06,187.35,187.33,0.7]
[1755762888437,0.06,187.35,187.34,3.74720667]
[1755762889041,0.06,187.35,187.34,4.44720667]
[1755762890017,0.06,187.35,187.34,0.7]
[1755762890218,0.06,187.35,187.34,4.44720667]
[1755762894150,0.06,187.35,187.34,30.44720667]
[1755762895746,0.06,187.35,187.34,0.7]
[1755762895957,0.06,187.35,187.34,4.44720667]
[1755762897056,0.06,187.35,187.34,0.7]
[1755762897352,0.06,187.35,187.34,4.44720667]
[1755762898558,0.06,187.35,187.34,3.74720667]
[1755762900158,0.06,187.35,187.34,4.43720667]
[1755762900463,0.06,187.35,187.32,28.859781]
[1755762900648,0.06,187.35,187.33,3.74720667]
[1755762900852,0.69,187.34,187.32,2.169781]
[1755762901033,0.69,187.34,187.32,0.03]
[1755762901229,0.06,187.35,187.32,0.72]
[1755762901441,0.75,187.35,187.32,4.46720667]
[1755762903966,0.75,187.35,187.32,0.72]
[1755762904258,0.75,187.35,187.32,4.46720667]
[1755762905853,0.06,187.35,187.34,3.74720667]
[1755762906174,0.06,187.35,187.34,4.43720667]
[1755762906351,0.06,187.35,187.34,4.68797209]
[1755762906546,0.06,187.35,187.34,8.43517876]
[1755762906843,0.06,187.35,187.34,8.43557119]
[1755762907363,0.06,187.35,187.34,4.43720667]
[1755762907867,0.06,187.35,187.34,0.69]
[1755762909083,0.06,187.35,187.34,3.53465]
[1755762909237,0.06,187.35,187.34,5.93117522]
[1755762912500,0.06,187.35,187.34,33.27839088]
[1755762919786,0.06,187.35,187.34,29.53465]
[1755762920004,0.06,187.35,187.34,33.27839088]
[1755762920863,0.06,187.35,187.34,113.07839088]
[1755762923381,0.06,187.35,187.34,112.38839088]
[1755762923688,0.06,187.35,187.34,149.68839088]
[1755762925175,0.06,187.35,187.34,150.40839088]
[1755762925383,0.06,187.35,187.34,108.64465]
[1755762925578,0.06,187.35,187.34,149.68839088]
[1755762926691,0.06,187.35,187.34,69.88839088]
[1755762927190,0.06,187.35,187.34,70.60839088]
[1755762928463,0.06,187.35,187.34,69.88839088]
[1755762930876,0.06,187.35,187.34,70.60839088]
[1755762931600,0.06,187.35,187.34,44.60839088]
[1755762932395,0.06,187.35,187.34,43.26060383]
[1755762932596,0.06,187.35,187.34,123.06060383]
[1755762939317,0.06,187.35,187.34,120.66465]
[1755762939524,0.06,187.35,187.34,82.64465]
[1755762939682,0.78,187.35,187.34,122.34060383]
[1755762940015,0.78,187.35,187.34,148.34060383]
[1755762941478,0.78,187.35,187.34,108.64465]
[1755762941794,0.78,187.35,187.33,37.3]
[1755762942596,0.78,187.35,187.33,39.69595383]
[1755762942913,0.72,187.34,187.33,39.69595383]
[1755762944904,0.72,187.34,187.33,37.3]
[1755762945214,0.72,187.34,187.33,39.69595383]
[1755762946517,0.72,187.34,187.32,39.72595383]
[1755762951540,0.06,187.35,187.32,2.42595383]
[1755762951699,0.72,187.33,187.32,2.42595383]
[1755762951892,0.72,187.33,187.32,0.03]
[1755762952317,0.72,187.33,187.32,2.42595383]
[1755762954432,0.71,187.34,187.32,2.42595383]
[1755762955721,0.06,187.35,187.32,2.42595383]
[1755762955923,0.06,187.35,187.34,2.39595383]
[1755762956822,0.06,187.35,187.33,2.39595383]
[1755762957121,0.71,187.34,187.32,0.03]
[1755762957327,0.71,187.33,187.32,0.03]
[1755762959311,0.77,187.35,187.32,0.03]
[1755762959636,0.71,187.34,187.32,0.03]
[1755762960011,0.71,187.33,187.32,0.03]
[1755762960322,0.71,187.33,187.32,26.03]
[1755762962624,0.71,187.34,187.32,26.03]
[1755762963433,0.71,187.33,187.32,26.03]
[1755762963835,0.71,187.33,187.32,28.42595383]
[1755762964439,0.71,187.33,187.32,30.82190683]
[1755762965343,0.71,187.34,187.32,30.82190683]
[1755762965742,0.71,187.34,187.32,28.42595383]
[1755762966156,0.71,187.34,187.33,2.455954]
[1755762966337,0.06,187.35,187.33,2.455954]
[1755762966529,2.45595383,187.35,187.32,26.03]
[1755762966728,2.39595383,187.34,187.32,2.425954]
[1755762966932,3.10595383,187.33,187.32,2.425954]
[1755762967129,3.10595383,187.33,187.32,0.03]
[1755762968335,16.70154784,187.33,187.32,0.03]
[1755762969452,16.98587098,187.33,187.32,0.03]
[1755762976462,19.77213637,187.33,187.32,0.03]
[1755762976639,57.07213637,187.33,187.32,0.03]
[1755762978460,19.77213637,187.33,187.32,0.03]
[1755762978665,57.07213637,187.33,187.32,0.03]
[1755762980776,53.6818594,187.33,187.32,0.03]
[1755762980976,40.08626539,187.33,187.32,0.69]
[1755762981165,42.48221922,187.33,187.32,0.69]
[1755762982475,43.83391495,187.33,187.32,0.69]
[1755762983977,37.3,187.33,187.32,0.69]
[1755762984192,0.06,187.34,187.32,0.69]
[1755762984360,0.06,187.34,187.32,2.830354]
[1755762984755,0.06,187.34,187.33,0.71]
[1755762985171,0.06,187.34,187.33,4.48765]
[1755762985381,0.06,187.34,187.33,0.71]
[1755762989089,0.06,187.34,187.33,4.45764956]
[1755762991765,0.06,187.34,187.33,6.59731656]
[1755763000587,0.06,187.34,187.33,2.849667]
[1755763000798,0.06,187.34,187.33,6.59731656]
[1755763003667,0.06,187.34,187.33,2.849667]
[1755763003867,0.06,187.34,187.33,6.59731656]
[1755763004495,0.06,187.34,187.33,5.24686191]
[1755763011276,0.06,187.34,187.33,42.52686191]
[1755763012701,0.06,187.34,187.33,122.32686191]
[1755763015788,0.06,187.34,187.33,122.33686191]
[1755763022207,0.78,187.34,187.33,121.59686191]
[1755763022620,0.78,187.34,187.33,145.199667]
[1755763023499,0.78,187.34,187.33,2.139667]
[1755763023691,3.17719491,187.34,187.33,2.139667]
[1755763024296,3.17719491,187.34,187.32,0.03]
[1755763024509,2.45719491,187.34,187.32,0.03]
[1755763024799,0.72,187.33,187.32,26.03]
[1755763026897,0.06,187.34,187.32,26.75]
[1755763027096,0.78,187.34,187.32,0.03]
[1755763027630,0.72,187.33,187.32,26.03]
[1755763030496,0.78,187.34,187.32,26.03]
[1755763031217,0.06,187.34,187.32,26.75]
[1755763031789,0.06,187.34,187.32,26.03]
[1755763031790,0.72,187.33,187.32,26.03]
[1755763032213,0.72,187.33,187.32,0.03]
[1755763033221,0.06,187.34,187.32,0.03]
[1755763033597,0.06,187.34,187.32,0.75]
[1755763033797,0.06,187.34,187.32,29.14719491]
[1755763033995,0.06,187.34,187.33,28.39719491]
[1755763034225,0.06,187.34,187.33,29.11719491]
[1755763044329,0.06,187.34,187.33,28.39719491]
[1755763046634,0.06,187.34,187.33,26.0]
[1755763046811,0.06,187.34,187.33,28.39719491]
[1755763047334,0.06,187.34,187.33,29.10719491]
[1755763050741,0.06,187.34,187.33,66.36719491]
[1755763051538,0.06,187.34,187.33,68.50686191]
[1755763063063,0.06,187.34,187.33,65.399667]
[1755763063361,0.06,187.34,187.33,67.79686191]
[1755763064745,0.06,187.34,187.33,68.50686191]
[1755763065057,0.74,187.34,187.32,0.03]
[1755763065236,0.74,187.34,187.33,26.0]
[1755763067680,0.74,187.34,187.32,0.03]
[1755763068245,3.13719491,187.34,187.32,0.03]
[1755763068783,0.68,187.33,187.32,26.03]
[1755763072947,3.07719491,187.33,187.32,26.03]
[1755763073339,0.68,187.33,187.32,26.03]
[1755763076178,0.65,187.33,187.32,26.03]
[1755763076390,0.06,187.34,187.32,29.12719491]
[1755763076551,0.06,187.34,187.32,2.42719491]
[1755763076856,0.06,187.34,187.33,0.7]
[1755763077564,0.06,187.34,187.33,3.09719491]
[1755763078452,0.06,187.34,187.32,2.42719491]
[1755763078674,0.06,187.34,187.32,3.12719491]
[1755763078979,0.06,187.34,187.33,0.7]
[1755763079353,0.06,187.34,187.33,29.09719491]
[1755763080050,0.06,187.34,187.33,28.39719491]
[1755763081354,0.06,187.34,187.33,26.0]
[1755763082793,0.71,187.34,187.33,26.0]
[1755763083092,0.06,187.34,187.33,26.0]
[1755763084209,0.71,187.34,187.32,0.03]
[1755763084403,2.39719491,187.33,187.32,26.03]
[1755763084577,3.04719491,187.33,187.32,26.03]
[1755763084777,0.65,187.33,187.32,26.03]
[1755763089694,3.10719491,187.34,187.32,26.03]
[1755763089892,0.71,187.34,187.32,26.03]
[1755763092912,0.65,187.33,187.32,26.03]
[1755763093095,0.71,187.34,187.32,26.03]
[1755763093413,0.65,187.33,187.32,26.03]
[1755763093584,3.04719491,187.33,187.32,0.03]
[1755763093909,16.64278892,187.33,187.32,0.03]
[1755763095309,16.92711206,187.33,187.32,0.03]
[1755763097002,19.71367311,187.33,187.32,0.03]
[1755763097404,19.71367311,187.33,187.31,0.03]
[1755763097713,26.5158917,187.32,187.3,0.03]
[1755763097902,25.8658917,187.31,187.3,0.03]
[1755763098218,30.81018994,187.31,187.3,0.03]
[1755763098516,30.81018994,187.31,187.29,0.03]
[1755763098517,13.87991715,187.3,187.29,0.03]
[1755763098711,26.5158917,187.3,187.29,0.03]
[1755763099811,63.7558917,187.3,187.29,0.03]
[1755763104123,107.33465859,187.3,187.29,0.03]
[1755763104305,52.5158917,187.3,187.29,0.03]
[1755763104511,89.7758917,187.3,187.29,0.03]
[1755763107939,89.7758917,187.3,187.28,0.03]
[1755763108232,13.59559401,187.27,187.25,0.03]
[1755763108434,53.25278892,187.26,187.25,0.03]
[1755763108803,53.97278892,187.26,187.25,0.03]
[1755763109217,53.53711206,187.26,187.25,0.03]
[1755763110328,54.25711206,187.26,187.25,0.03]
[1755763112614,53.53711206,187.26,187.25,0.03]
[1755763113335,39.65719491,187.26,187.25,0.74]
[1755763114357,41.01121354,187.26,187.25,0.74]
[1755763117426,43.79808887,187.26,187.25,0.74]
[1755763119244,2.78687533,187.26,187.25,0.74]
[1755763120862,2.78687533,187.26,187.25,4.49121354]
[1755763121164,0.06,187.29,187.25,4.49121354]
[1755763121165,0.06,187.29,187.25,8.24242754]
[1755763121461,0.06,187.29,187.26,4.46121354]
[1755763121825,0.06,187.29,187.26,3.75121354]
[1755763122016,0.06,187.29,187.27,0.71]
[1755763122622,0.06,187.29,187.27,4.46121354]
[1755763123026,0.06,187.29,187.28,0.71]
[1755763131869,0.78,187.29,187.25,0.74]
[1755763132058,0.78,187.29,187.26,0.71]
[1755763132059,4.53121354,187.29,187.26,0.71]
[1755763132436,0.06,187.29,187.26,0.71]
[1755763133280,0.06,187.29,187.27,0.7]
[1755763133638,0.06,187.29,187.28,0.7]
[1755763135556,0.06,187.29,187.27,0.03]
[1755763135760,0.06,187.29,187.27,0.73]
[1755763137174,0.06,187.29,187.27,0.03]
[1755763137472,0.06,187.29,187.28,0.7]
[1755763139268,0.06,187.29,187.27,7.562428]
[1755763139451,0.06,187.29,187.27,0.73]
[1755763139652,4.41121354,187.28,187.27,0.03]
[1755763140359,3.06024238,187.28,187.27,0.03]
[1755763141359,16.94015953,187.28,187.27,0.03]
[1755763141555,54.18015953,187.28,187.27,0.03]
[1755763141856,56.96712915,187.28,187.27,0.03]
[1755763142260,54.56688677,187.28,187.27,0.03]
[1755763142462,58.31796825,187.28,187.27,0.03]
[1755763142681,57.37364511,187.28,187.27,0.03]
[1755763143260,58.03364511,187.28,187.27,0.03]
[1755763144279,2.78696962,187.28,187.27,0.03]
[1755763144467,0.06,187.29,187.27,0.73]
[1755763145083,0.06,187.29,187.28,0.7]
[1755763146077,0.06,187.29,187.27,0.03]
[1755763146279,0.06,187.29,187.27,0.73]
[1755763146568,0.06,187.29,187.27,0.03]
[1755763146569,3.81108148,187.29,187.27,0.03]
[1755763146778,3.81108148,187.29,187.27,0.73]
[1755763147387,3.81108148,187.29,187.27,0.03]
[1755763147558,3.81108148,187.29,187.27,0.73]
[1755763150604,4.47108148,187.29,187.27,0.03]
[1755763150803,0.06,187.29,187.27,0.03]
[1755763151012,3.81108148,187.29,187.27,0.03]
[1755763151295,0.06,187.29,187.27,0.73]
[1755763151454,3.81108148,187.29,187.28,0.7]
[1755763151658,4.47108148,187.29,187.27,0.03]
[1755763151881,0.72,187.29,187.27,0.03]
[1755763152078,4.47108148,187.29,187.27,0.03]
[1755763153777,3.81108148,187.29,187.27,0.03]
[1755763153986,3.81108148,187.29,187.27,0.73]
[1755763155572,3.81108148,187.29,187.28,0.7]
[1755763156188,3.81108148,187.29,187.27,0.03]
[1755763156488,3.81108148,187.29,187.27,0.73]
[1755763157399,4.47108148,187.29,187.27,0.03]
[1755763158075,3.81108148,187.29,187.27,0.03]
[1755763159680,4.47108148,187.29,187.27,0.03]
[1755763160317,0.72,187.29,187.27,0.03]
[1755763160504,4.47108148,187.29,187.27,0.03]
[1755763160881,0.72,187.29,187.27,0.03]
[1755763161098,4.47108148,187.29,187.27,0.03]
[1755763162111,3.81108148,187.29,187.27,0.73]
[1755763163307,3.81108148,187.29,187.27,0.03]
[1755763163803,4.50108148,187.29,187.27,0.03]
[1755763164307,3.14958199,187.29,187.27,0.03]
[1755763168007,0.06,187.29,187.27,0.03]
[1755763168218,2.45958199,187.29,187.27,0.75]
[1755763172222,0.06,187.29,187.27,0.03]
[1755763172433,0.06,187.29,187.27,0.75]
[1755763176299,0.75,187.29,187.27,0.03]
[1755763176505,0.69,187.28,187.27,0.03]
[1755763178418,2.84656698,187.29,187.27,0.03]
[1755763178731,5.93614897,187.29,187.27,0.03]
[1755763183030,2.84656698,187.29,187.27,0.03]
[1755763183326,5.93614897,187.29,187.27,0.03]
[1755763183544,2.84656698,187.29,187.27,0.75]
[1755763183712,5.24614897,187.29,187.27,0.75]
[1755763186433,2.84656698,187.29,187.27,0.75]
[1755763186633,0.06,187.29,187.28,0.72]
[1755763187345,0.06,187.29,187.28,3.11958199]
[1755763187531,0.06,187.29,187.28,35.33024499]
[1755763187719,0.06,187.29,187.28,18.92857295]
[1755763188233,0.06,187.29,187.28,19.21289609]
[1755763200228,0.06,187.29,187.28,38.6820484]
[1755763200425,0.06,187.33,187.31,26.0]
[1755763200685,0.06,187.33,187.32,39.61958199]
[1755763201028,0.06,187.33,187.32,40.61390513]
[1755763201229,0.06,187.33,187.32,43.28730295]
[1755763201430,0.75,187.33,187.32,2.139552]
[1755763201639,0.06,187.33,187.32,41.75913399]
[1755763201863,0.06,187.33,187.32,42.75345713]
[1755763202749,0.06,187.33,187.32,42.61129556]
[1755763203068,0.06,187.33,187.32,42.46913399]
[1755763204471,0.06,187.33,187.32,39.359552]
[1755763204768,0.75,187.33,187.32,67.75913399]
[1755763204969,0.06,187.33,187.32,67.75913399]
[1755763205339,3.14958199,187.33,187.32,2.139552]
[1755763205540,3.14958199,187.33,187.28,37.24]
[1755763205754,3.08958199,187.32,187.28,37.24]
[1755763206071,0.69,187.31,187.28,39.380354]
[1755763206942,0.69,187.31,187.28,2.140354]
[1755763207144,3.74784508,187.29,187.28,2.140354]
[1755763207449,4.43784508,187.29,187.28,2.140354]
[1755763207845,4.43784508,187.29,187.27,0.03]
[1755763208160,4.43784508,187.28,187.27,0.03]
[1755763210173,18.03343909,187.28,187.27,0.03]
[1755763211274,4.43784508,187.28,187.27,0.03]
[1755763212082,0.06,187.33,187.27,0.03]
[1755763212379,0.69,187.3,187.27,0.03]
[1755763212681,4.43784508,187.3,187.27,0.03]
[1755763213050,0.69,187.29,187.27,0.03]
[1755763213377,0.69,187.29,187.28,13.655594]
[1755763215986,4.43784508,187.31,187.28,13.655594]
[1755763216183,0.06,187.33,187.28,13.655594]
[1755763216184,0.69,187.3,187.28,13.655594]
[1755763216352,0.69,187.31,187.28,13.655594]
[1755763217487,0.69,187.3,187.28,13.655594]
[1755763217656,4.43784508,187.32,187.28,13.655594]
[1755763217852,0.69,187.31,187.28,13.655594]
[1755763219455,3.74784508,187.32,187.28,13.655594]
[1755763219456,0.69,187.3,187.28,13.655594]
[1755763220168,3.74784508,187.32,187.28,13.655594]
[1755763220357,0.69,187.29,187.28,13.655594]
[1755763220856,4.43784508,187.29,187.27,0.03]
[1755763221052,3.74784508,187.28,187.27,0.03]
[1755763221252,4.43784508,187.28,187.27,0.03]
[1755763221681,0.69,187.28,187.27,0.03]
[1755763221887,4.43784508,187.28,187.27,0.03]
[1755763222987,3.4765137,187.31,187.27,0.74]